[Event "Titled Tuesday Blitz November 01 Late 2022"]
[White "Ladan, Nicholas"]
[Black "Amburgy, Ryan"]
[WhiteFideId "30918855"]
[BlackFideId "30924820"]
[WhiteElo "2523"]
[BlackElo "2745"]
[Result "1/2-1/2"]
[Round "04"]
[TimeControl "180+1"]
[Date "2022.11.02"]
[WhiteClock "0:00:04"]
[BlackClock "0:00:10"]

1. d4 {[%clk 0:02:59]}  Nf6 {[%clk 0:02:59]} 2. c4 {[%clk 0:02:59]}  e6 {[%clk 0:02:59]} 3. g3 {[%clk 0:02:59]}  d5 {[%clk 0:02:59]} 4. Nf3 {[%clk 0:02:59]}  Bb4+ {[%clk 0:02:59]} 5. Bd2 {[%clk 0:02:58]}  Bd6 {[%clk 0:02:59]} 6. Bg2 {[%clk 0:02:53]}  O-O {[%clk 0:02:59]} 7. O-O {[%clk 0:02:53]}  c6 {[%clk 0:02:59]} 8. Bg5 {[%clk 0:02:52]}  Nbd7 {[%clk 0:02:58]} 9. Nbd2 {[%clk 0:02:51]}  h6 {[%clk 0:02:57]} 10. Bxf6 {[%clk 0:02:50]}  Nxf6 {[%clk 0:02:58]} 11. e3 {[%clk 0:02:48]}  b6 {[%clk 0:02:58]} 12. a4 {[%clk 0:02:48]}  Ba6 {[%clk 0:02:54]} 13. Qc2 {[%clk 0:02:47]}  Bb4 {[%clk 0:02:50]} 14. b3 {[%clk 0:02:40]}  Rc8 {[%clk 0:02:48]} 15. Ne5 {[%clk 0:02:35]}  Re8 {[%clk 0:02:36]} 16. Rfc1 {[%clk 0:02:18]}  Nd7 {[%clk 0:02:32]} 17. Ndf3 {[%clk 0:02:16]}  Nxe5 {[%clk 0:02:26]} 18. Nxe5 {[%clk 0:02:17]}  Bd6 {[%clk 0:02:26]} 19. Nd3 {[%clk 0:02:08]}  Qe7 {[%clk 0:02:20]} 20. c5 {[%clk 0:02:07]}  Bb8 {[%clk 0:02:13]} 21. b4 {[%clk 0:02:05]}  bxc5 {[%clk 0:02:08]} 22. Nxc5 {[%clk 0:02:03]}  Bc4 {[%clk 0:02:08]} 23. Bf1 {[%clk 0:01:58]}  Bxf1 {[%clk 0:02:09]} 24. Kxf1 {[%clk 0:01:59]}  e5 {[%clk 0:02:09]} 25. Qf5 {[%clk 0:01:54]}  Bd6 {[%clk 0:02:07]} 26. Kg2 {[%clk 0:01:48]}  g6 {[%clk 0:02:01]} 27. Qf3 {[%clk 0:01:39]}  e4 {[%clk 0:01:49]} 28. Qe2 {[%clk 0:01:34]}  h5 {[%clk 0:01:45]} 29. h4 {[%clk 0:01:13]}  Rb8 {[%clk 0:01:39]} 30. b5 {[%clk 0:01:10]}  cxb5 {[%clk 0:01:24]} 31. axb5 {[%clk 0:01:11]}  Rec8 {[%clk 0:01:24]} 32. Na6 {[%clk 0:01:07]}  Rxc1 {[%clk 0:01:23]} 33. Rxc1 {[%clk 0:01:08]}  Rb7 {[%clk 0:01:22]} 34. Rc6 {[%clk 0:01:05]}  Rb6 {[%clk 0:01:12]} 35. Rc8+ {[%clk 0:00:59]}  Kh7 {[%clk 0:01:09]} 36. Nc5 {[%clk 0:00:59]}  Rb8 {[%clk 0:00:58]} 37. Rc6 {[%clk 0:00:56]}  Bc7 {[%clk 0:00:53]} 38. Qa2 {[%clk 0:00:55]}  Rxb5 {[%clk 0:00:49]} 39. Qxd5 {[%clk 0:00:52]}  Bb6 {[%clk 0:00:49]} 40. Qd6 {[%clk 0:00:23]}  Qxd6 {[%clk 0:00:42]} 41. Rxd6 {[%clk 0:00:24]}  f5 {[%clk 0:00:21]} 42. Rd7+ {[%clk 0:00:20]}  Kg8 {[%clk 0:00:21]} 43. Ne6 {[%clk 0:00:20]}  a5 {[%clk 0:00:21]} 44. Rg7+ {[%clk 0:00:19]}  Kh8 {[%clk 0:00:22]} 45. Rxg6 {[%clk 0:00:19]}  a4 {[%clk 0:00:22]} 46. Rf6 {[%clk 0:00:03]}  a3 {[%clk 0:00:19]} 47. Rf8+ {[%clk 0:00:03]}  Kh7 {[%clk 0:00:19]} 48. Ra8 {[%clk 0:00:04]}  Ba5 {[%clk 0:00:20]} 49. Nc5 {[%clk 0:00:03]}  a2 {[%clk 0:00:20]} 50. Nb3 {[%clk 0:00:04]}  Bc3 {[%clk 0:00:18]} 51. Ra7+ {[%clk 0:00:02]}  Kg6 {[%clk 0:00:18]} 52. Rxa2 {[%clk 0:00:03]}  Rxb3 {[%clk 0:00:18]} 53. Ra6+ {[%clk 0:00:03]}  Kg7 {[%clk 0:00:18]} 54. Ra5 {[%clk 0:00:02]}  Kf6 {[%clk 0:00:15]} 55. Ra6+ {[%clk 0:00:02]}  Ke7 {[%clk 0:00:16]} 56. Rh6 {[%clk 0:00:02]}  Be1 {[%clk 0:00:15]} 57. Rxh5 {[%clk 0:00:02]}  Kf6 {[%clk 0:00:16]} 58. g4 {[%clk 0:00:01]}  fxg4 {[%clk 0:00:16]} 59. Kg3 {[%clk 0:00:02]}  Rb2 {[%clk 0:00:16]} 60. Kxg4 {[%clk 0:00:03]}  Rxf2 {[%clk 0:00:15]} 61. Rh6+ {[%clk 0:00:03]}  Ke7 {[%clk 0:00:15]} 62. Rh5 {[%clk 0:00:03]}  Kd6 {[%clk 0:00:16]} 63. Re5 {[%clk 0:00:04]}  Rg2+ {[%clk 0:00:16]} 64. Kf5 {[%clk 0:00:03]}  Bxh4 {[%clk 0:00:15]} 65. Kxe4 {[%clk 0:00:03]}  Rg3 {[%clk 0:00:13]} 66. Kd3 {[%clk 0:00:03]}  Bg5 {[%clk 0:00:12]} 67. Re4 {[%clk 0:00:03]}  Rh3 {[%clk 0:00:11]} 68. Re5 {[%clk 0:00:04]}  Bf6 {[%clk 0:00:11]} 69. Re4 {[%clk 0:00:04]}  Kd5 {[%clk 0:00:12]} 70. Re8 {[%clk 0:00:04]}  Rh1 {[%clk 0:00:09]} 71. e4+ {[%clk 0:00:02]}  Kc6 {[%clk 0:00:10]} 72. e5 {[%clk 0:00:03]}  Bg5 {[%clk 0:00:10]} 73. Re6+ {[%clk 0:00:01]}  Kd7 {[%clk 0:00:10]} 74. Rd6+ {[%clk 0:00:02]}  Ke7 {[%clk 0:00:10]} 75. Ke4 {[%clk 0:00:03]}  Rf1 {[%clk 0:00:11]} 76. Kd5 {[%clk 0:00:03]}  Be3 {[%clk 0:00:11]} 77. Re6+ {[%clk 0:00:03]}  Kf7 {[%clk 0:00:11]} 78. Rf6+ {[%clk 0:00:03]}  Rxf6 {[%clk 0:00:08]} 79. exf6 {[%clk 0:00:04]}  Bxd4 {[%clk 0:00:09]} 80. Kxd4 {[%clk 0:00:04]}  Kxf6 {[%clk 0:00:10]} 1/2-1/2


[Site "https://www.chess.com"]

[Event "Titled Tuesday Blitz November 01 Late 2022"]
[White "Lazavik, Denis"]
[Black "Danielyan, Vahe"]
[WhiteFideId "13515110"]
[BlackFideId "13304828"]
[WhiteElo "2437"]
[BlackElo "2421"]
[Result "1-0"]
[Round "04"]
[TimeControl "180+1"]
[Date "2022.11.01"]
[WhiteClock "0:01:44"]
[BlackClock "0:02:04"]

1. d4 {[%clk 0:03:00]}  e6 {[%clk 0:02:58]} 2. c4 {[%clk 0:03:01]}  f5 {[%clk 0:02:58]} 3. Nf3 {[%clk 0:03:00]}  Nf6 {[%clk 0:02:58]} 4. g3 {[%clk 0:03:01]}  b6 {[%clk 0:02:58]} 5. Bg2 {[%clk 0:03:01]}  Bb7 {[%clk 0:02:59]} 6. O-O {[%clk 0:03:01]}  Be7 {[%clk 0:02:59]} 7. d5 {[%clk 0:02:55]}  O-O {[%clk 0:02:59]} 8. Nc3 {[%clk 0:02:55]}  Na6 {[%clk 0:02:57]} 9. Nd4 {[%clk 0:02:49]}  Nc5 {[%clk 0:02:55]} 10. Bf4 {[%clk 0:02:40]}  Nce4 {[%clk 0:02:50]} 11. Nxe4 {[%clk 0:02:37]}  fxe4 {[%clk 0:02:50]} 12. dxe6 {[%clk 0:02:37]}  d5 {[%clk 0:02:50]} 13. cxd5 {[%clk 0:02:34]}  Qxd5 {[%clk 0:02:51]} 14. Bh3 {[%clk 0:02:06]}  Rad8 {[%clk 0:02:46]} 15. Nf5 {[%clk 0:02:03]}  Qc5 {[%clk 0:02:30]} 16. Qc1 {[%clk 0:02:00]}  Rfe8 {[%clk 0:02:22]} 17. Be3 {[%clk 0:01:55]}  Qe5 {[%clk 0:02:14]} 18. Bf4 {[%clk 0:01:52]}  Qb5 {[%clk 0:02:09]} 19. Qxc7 {[%clk 0:01:49]}  Nd5 {[%clk 0:02:05]} 20. Qxb7 {[%clk 0:01:48]}  Bf6 {[%clk 0:02:04]} 21. Qf7+ {[%clk 0:01:45]}  Kh8 {[%clk 0:02:04]} 22. Nd6 {[%clk 0:01:44]} 1-0


[Site "https://www.chess.com"]

[Event "Titled Tuesday Blitz November 01 Late 2022"]
[White "Leitao, Rafael"]
[Black "Veleshnja, Zino"]
[WhiteFideId "2101246"]
[BlackFideId "4701313"]
[WhiteElo "2609"]
[BlackElo "2167"]
[Result "1-0"]
[Round "04"]
[TimeControl "180+1"]
[Date "2022.11.02"]
[WhiteClock "0:02:03"]
[BlackClock "0:02:22"]

1. c4 {[%clk 0:03:00]}  Nf6 {[%clk 0:02:58]} 2. Nc3 {[%clk 0:02:59]}  e6 {[%clk 0:02:59]} 3. e4 {[%clk 0:02:59]}  d5 {[%clk 0:02:59]} 4. e5 {[%clk 0:03:00]}  d4 {[%clk 0:03:00]} 5. exf6 {[%clk 0:03:00]}  dxc3 {[%clk 0:03:01]} 6. bxc3 {[%clk 0:03:00]}  Qxf6 {[%clk 0:03:01]} 7. Nf3 {[%clk 0:03:00]}  c5 {[%clk 0:03:00]} 8. d4 {[%clk 0:02:57]}  Qd8 {[%clk 0:02:59]} 9. Bd3 {[%clk 0:02:54]}  Be7 {[%clk 0:03:00]} 10. h4 {[%clk 0:02:50]}  Nc6 {[%clk 0:03:00]} 11. Be3 {[%clk 0:02:41]}  Qa5 {[%clk 0:02:53]} 12. O-O {[%clk 0:02:35]}  Qxc3 {[%clk 0:02:48]} 13. Rc1 {[%clk 0:02:17]}  Qa5 {[%clk 0:02:40]} 14. d5 {[%clk 0:02:13]}  Nb4 {[%clk 0:02:38]} 15. Bb1 {[%clk 0:02:10]}  exd5 {[%clk 0:02:33]} 16. cxd5 {[%clk 0:02:09]}  Bg4 {[%clk 0:02:31]} 17. d6 {[%clk 0:02:05]}  O-O-O {[%clk 0:02:23]} 18. Rxc5+ {[%clk 0:02:03]}  Qxc5 {[%clk 0:02:22]} 19. Bxc5 {[%clk 0:02:03]} 1-0


[Site "https://www.chess.com"]

[Event "Titled Tuesday Blitz November 01 Late 2022"]
[White "Leiva, Gianmarco"]
[Black "Przybylski, Wojciech"]
[WhiteFideId "3804399"]
[BlackFideId "1117599"]
[WhiteElo "2285"]
[BlackElo "2221"]
[Result "1-0"]
[Round "04"]
[TimeControl "180+1"]
[Date "2022.11.02"]
[WhiteClock "0:00:35"]
[BlackClock "0:00:01"]

1. e4 {[%clk 0:03:00]}  e5 {[%clk 0:02:51]} 2. Nf3 {[%clk 0:03:01]}  Nf6 {[%clk 0:02:50]} 3. Nc3 {[%clk 0:02:51]}  Nc6 {[%clk 0:02:48]} 4. h3 {[%clk 0:02:47]}  a6 {[%clk 0:02:45]} 5. Bc4 {[%clk 0:02:42]}  Nxe4 {[%clk 0:02:39]} 6. O-O {[%clk 0:02:38]}  Nxc3 {[%clk 0:02:31]} 7. dxc3 {[%clk 0:02:39]}  Be7 {[%clk 0:02:31]} 8. Qd5 {[%clk 0:02:34]}  O-O {[%clk 0:02:30]} 9. Nxe5 {[%clk 0:02:34]}  Nxe5 {[%clk 0:02:29]} 10. Qxe5 {[%clk 0:02:34]}  Bf6 {[%clk 0:02:21]} 11. Qg3 {[%clk 0:02:34]}  d5 {[%clk 0:02:17]} 12. Bd3 {[%clk 0:02:33]}  Be6 {[%clk 0:02:14]} 13. Be3 {[%clk 0:02:26]}  Re8 {[%clk 0:02:06]} 14. Bd4 {[%clk 0:02:23]}  Rc8 {[%clk 0:02:02]} 15. b4 {[%clk 0:02:16]}  a5 {[%clk 0:01:54]} 16. a3 {[%clk 0:02:13]}  b6 {[%clk 0:01:41]} 17. Ba6 {[%clk 0:01:54]}  Ra8 {[%clk 0:01:39]} 18. Bb5 {[%clk 0:01:52]}  Rf8 {[%clk 0:01:23]} 19. Rfe1 {[%clk 0:01:49]}  axb4 {[%clk 0:01:10]} 20. axb4 {[%clk 0:01:41]}  Rxa1 {[%clk 0:01:07]} 21. Rxa1 {[%clk 0:01:42]}  Bxd4 {[%clk 0:01:05]} 22. cxd4 {[%clk 0:01:42]}  Bd7 {[%clk 0:00:55]} 23. Bd3 {[%clk 0:01:39]}  c6 {[%clk 0:00:40]} 24. Qd6 {[%clk 0:01:35]}  Be6 {[%clk 0:00:15]} 25. Qxc6 {[%clk 0:01:05]}  Qg5 {[%clk 0:00:15]} 26. Ra8 {[%clk 0:01:06]}  g6 {[%clk 0:00:08]} 27. Rxf8+ {[%clk 0:01:02]}  Kxf8 {[%clk 0:00:08]} 28. Qd6+ {[%clk 0:01:02]}  Kg8 {[%clk 0:00:08]} 29. Qb8+ {[%clk 0:01:01]}  Kg7 {[%clk 0:00:08]} 30. Qe5+ {[%clk 0:01:02]}  Qxe5 {[%clk 0:00:08]} 31. dxe5 {[%clk 0:01:03]}  Kf8 {[%clk 0:00:08]} 32. c3 {[%clk 0:01:03]}  Ke7 {[%clk 0:00:08]} 33. f4 {[%clk 0:01:04]}  f6 {[%clk 0:00:07]} 34. Kf2 {[%clk 0:00:59]}  fxe5 {[%clk 0:00:07]} 35. fxe5 {[%clk 0:01:00]}  Bc8 {[%clk 0:00:05]} 36. Ke3 {[%clk 0:01:00]}  Ke6 {[%clk 0:00:05]} 37. Kd4 {[%clk 0:01:01]}  Bb7 {[%clk 0:00:05]} 38. h4 {[%clk 0:00:55]}  Ba8 {[%clk 0:00:05]} 39. g4 {[%clk 0:00:54]}  Bb7 {[%clk 0:00:05]} 40. Be2 {[%clk 0:00:52]}  h6 {[%clk 0:00:04]} 41. Bd3 {[%clk 0:00:48]}  g5 {[%clk 0:00:04]} 42. Bf5+ {[%clk 0:00:49]}  Ke7 {[%clk 0:00:04]} 43. hxg5 {[%clk 0:00:45]}  hxg5 {[%clk 0:00:04]} 44. b5 {[%clk 0:00:46]}  Ba8 {[%clk 0:00:01]} 45. Bd3 {[%clk 0:00:45]}  Bb7 {[%clk 0:00:01]} 46. Be2 {[%clk 0:00:46]}  Ba8 {[%clk 0:00:01]} 47. Bf3 {[%clk 0:00:47]}  Bb7 {[%clk 0:00:02]} 48. Bxd5 {[%clk 0:00:47]}  Bc8 {[%clk 0:00:02]} 49. Bf3 {[%clk 0:00:48]}  Be6 {[%clk 0:00:01]} 50. c4 {[%clk 0:00:48]}  Kd8 {[%clk 0:00:01]} 51. c5 {[%clk 0:00:49]}  Kc7 {[%clk 0:00:02]} 52. Be2 {[%clk 0:00:41]}  Bd7 {[%clk 0:00:01]} 53. Kd5 {[%clk 0:00:35]} 1-0


[Site "https://www.chess.com"]

[Event "Titled Tuesday Blitz November 01 Late 2022"]
[White "Li, Ben"]
[Black "Jimenez Almeida, Luis David"]
[WhiteFideId "2089980"]
[BlackFideId "22242244"]
[WhiteElo "2761"]
[BlackElo "2538"]
[Result "1-0"]
[Round "04"]
[TimeControl "180+1"]
[Date "2022.11.02"]
[WhiteClock "0:00:05"]
[BlackClock "0:00:02"]

1. d4 {[%clk 0:03:00]}  g6 {[%clk 0:02:59]} 2. e4 {[%clk 0:03:00]}  Bg7 {[%clk 0:02:59]} 3. c4 {[%clk 0:02:59]}  c5 {[%clk 0:02:59]} 4. d5 {[%clk 0:02:55]}  b5 {[%clk 0:02:59]} 5. cxb5 {[%clk 0:02:54]}  a6 {[%clk 0:02:59]} 6. Nc3 {[%clk 0:02:54]}  d6 {[%clk 0:02:50]} 7. Nf3 {[%clk 0:02:53]}  Nf6 {[%clk 0:02:50]} 8. a4 {[%clk 0:02:53]}  O-O {[%clk 0:02:48]} 9. Bd2 {[%clk 0:02:53]}  Nfd7 {[%clk 0:02:39]} 10. Bd3 {[%clk 0:02:51]}  Qc7 {[%clk 0:02:36]} 11. O-O {[%clk 0:02:50]}  c4 {[%clk 0:02:23]} 12. Be2 {[%clk 0:02:49]}  Ne5 {[%clk 0:02:21]} 13. Nxe5 {[%clk 0:02:48]}  Bxe5 {[%clk 0:02:22]} 14. f4 {[%clk 0:02:44]}  Bg7 {[%clk 0:02:21]} 15. Kh1 {[%clk 0:02:43]}  Nd7 {[%clk 0:02:19]} 16. Qc2 {[%clk 0:02:30]}  Bb7 {[%clk 0:02:15]} 17. Be3 {[%clk 0:02:03]}  Rfc8 {[%clk 0:02:09]} 18. Rfc1 {[%clk 0:01:41]}  h5 {[%clk 0:02:03]} 19. Rf1 {[%clk 0:01:35]}  axb5 {[%clk 0:01:53]} 20. axb5 {[%clk 0:01:21]}  Nc5 {[%clk 0:01:28]} 21. Rxa8 {[%clk 0:01:16]}  Bxa8 {[%clk 0:01:29]} 22. f5 {[%clk 0:01:08]}  Nd7 {[%clk 0:01:19]} 23. Qd2 {[%clk 0:00:59]}  Ne5 {[%clk 0:01:14]} 24. Bd4 {[%clk 0:00:57]}  Qa5 {[%clk 0:01:05]} 25. fxg6 {[%clk 0:00:57]}  fxg6 {[%clk 0:01:06]} 26. Qg5 {[%clk 0:00:56]}  Rf8 {[%clk 0:00:54]} 27. Rd1 {[%clk 0:00:35]}  Bf6 {[%clk 0:00:46]} 28. Qg3 {[%clk 0:00:34]}  Kh7 {[%clk 0:00:43]} 29. h3 {[%clk 0:00:27]}  Qb4 {[%clk 0:00:43]} 30. Rd2 {[%clk 0:00:26]}  Bb7 {[%clk 0:00:35]} 31. b6 {[%clk 0:00:26]}  Ra8 {[%clk 0:00:33]} 32. Kh2 {[%clk 0:00:26]}  Ra6 {[%clk 0:00:26]} 33. Qe3 {[%clk 0:00:20]}  Bg7 {[%clk 0:00:21]} 34. Bf1 {[%clk 0:00:20]}  Bh6 {[%clk 0:00:21]} 35. Qf2 {[%clk 0:00:18]}  Bxd2 {[%clk 0:00:20]} 36. Qxd2 {[%clk 0:00:19]}  Ra8 {[%clk 0:00:20]} 37. Qf4 {[%clk 0:00:18]}  Rg8 {[%clk 0:00:12]} 38. Be2 {[%clk 0:00:16]}  Rg7 {[%clk 0:00:11]} 39. Qd2 {[%clk 0:00:15]}  Qb3 {[%clk 0:00:09]} 40. Nd1 {[%clk 0:00:14]}  Bc8 {[%clk 0:00:09]} 41. Ne3 {[%clk 0:00:14]}  Rf7 {[%clk 0:00:06]} 42. Qe1 {[%clk 0:00:11]}  Nd3 {[%clk 0:00:05]} 43. Qg3 {[%clk 0:00:10]}  Nc5 {[%clk 0:00:04]} 44. Qg5 {[%clk 0:00:07]}  Nxe4 {[%clk 0:00:03]} 45. Qh4 {[%clk 0:00:07]}  Nf6 {[%clk 0:00:03]} 46. Bxc4 {[%clk 0:00:06]}  Qb4 {[%clk 0:00:02]} 47. Bd3 {[%clk 0:00:06]}  Qd2 {[%clk 0:00:01]} 48. Bxf6 {[%clk 0:00:04]}  exf6 {[%clk 0:00:01]} 49. Qxh5+ {[%clk 0:00:04]}  Kg8 {[%clk 0:00:02]} 50. Qxg6+ {[%clk 0:00:05]}  Rg7 {[%clk 0:00:02]} 51. Qe8# {[%clk 0:00:05]} 1-0


[Site "https://www.chess.com"]

[Event "Titled Tuesday Blitz November 01 Late 2022"]
[White "Lopez Del Alamo, Antonio"]
[Black "Martinez Molina, Carlos Alberto"]
[WhiteFideId "2227339"]
[BlackFideId "5122708"]
[WhiteElo "2175"]
[BlackElo "2212"]
[Result "1-0"]
[Round "04"]
[TimeControl "180+1"]
[Date "2022.11.02"]
[WhiteClock "0:00:18"]
[BlackClock "0:00:13"]

1. e4 {[%clk 0:03:00]}  c5 {[%clk 0:02:59]} 2. Nf3 {[%clk 0:02:56]}  e6 {[%clk 0:02:58]} 3. d3 {[%clk 0:02:46]}  Nc6 {[%clk 0:02:55]} 4. g3 {[%clk 0:02:39]}  Nf6 {[%clk 0:02:52]} 5. Bg2 {[%clk 0:02:35]}  d5 {[%clk 0:02:51]} 6. Nbd2 {[%clk 0:02:28]}  Be7 {[%clk 0:02:50]} 7. O-O {[%clk 0:02:27]}  O-O {[%clk 0:02:49]} 8. e5 {[%clk 0:02:27]}  Nd7 {[%clk 0:02:48]} 9. Re1 {[%clk 0:02:28]}  b5 {[%clk 0:02:49]} 10. Nf1 {[%clk 0:02:23]}  a5 {[%clk 0:02:48]} 11. h4 {[%clk 0:02:22]}  b4 {[%clk 0:02:48]} 12. Bf4 {[%clk 0:02:22]}  Ba6 {[%clk 0:02:47]} 13. c3 {[%clk 0:02:22]}  a4 {[%clk 0:02:46]} 14. a3 {[%clk 0:02:21]}  bxa3 {[%clk 0:02:45]} 15. bxa3 {[%clk 0:02:20]}  Qc7 {[%clk 0:02:45]} 16. N1h2 {[%clk 0:02:19]}  Rfb8 {[%clk 0:02:45]} 17. Bf1 {[%clk 0:02:08]}  Nf8 {[%clk 0:02:41]} 18. Ng5 {[%clk 0:02:05]}  h6 {[%clk 0:02:38]} 19. Qh5 {[%clk 0:02:04]}  Ng6 {[%clk 0:02:29]} 20. Ng4 {[%clk 0:02:00]}  Bxg5 {[%clk 0:01:21]} 21. hxg5 {[%clk 0:01:58]}  hxg5 {[%clk 0:01:14]} 22. Nf6+ {[%clk 0:01:42]}  Kf8 {[%clk 0:01:00]} 23. Bxg5 {[%clk 0:01:32]}  Nce7 {[%clk 0:00:15]} 24. Qh7 {[%clk 0:01:23]}  Rb2 {[%clk 0:00:11]} 25. Bh6 {[%clk 0:01:05]}  Nf5 {[%clk 0:00:11]} 26. Qg8+ {[%clk 0:00:56]}  Ke7 {[%clk 0:00:11]} 27. Qxa8 {[%clk 0:00:55]}  gxf6 {[%clk 0:00:10]} 28. Qxa6 {[%clk 0:00:42]}  Nxe5 {[%clk 0:00:07]} 29. Bc1 {[%clk 0:00:37]}  Nf3+ {[%clk 0:00:05]} 30. Kh1 {[%clk 0:00:34]}  Rb8 {[%clk 0:00:05]} 31. Bf4 {[%clk 0:00:32]}  Qd8 {[%clk 0:00:03]} 32. Bh3 {[%clk 0:00:26]}  Qh8 {[%clk 0:00:03]} 33. Kg2 {[%clk 0:00:25]}  Nxe1+ {[%clk 0:00:03]} 34. Rxe1 {[%clk 0:00:18]}  Rg8 {[%clk 0:00:04]} 35. Bxf5 {[%clk 0:00:17]}  Qh5 {[%clk 0:00:03]} 36. Bh3 {[%clk 0:00:15]}  Rh8 {[%clk 0:00:02]} 37. Qb7+ {[%clk 0:00:14]}  Kf8 {[%clk 0:00:02]} 38. Bd6+ {[%clk 0:00:13]}  Kg7 {[%clk 0:00:02]} 39. Rh1 {[%clk 0:00:13]}  Qg6 {[%clk 0:00:02]} 40. Bxe6 {[%clk 0:00:13]}  Rxh1 {[%clk 0:00:02]} 41. Kxh1 {[%clk 0:00:13]}  Qh5+ {[%clk 0:00:02]} 42. Kg2 {[%clk 0:00:12]}  Qg6 {[%clk 0:00:01]} 43. Qxf7+ {[%clk 0:00:11]}  Qxf7 {[%clk 0:00:01]} 44. Bxf7 {[%clk 0:00:12]}  Kxf7 {[%clk 0:00:02]} 45. Bxc5 {[%clk 0:00:12]}  Ke6 {[%clk 0:00:03]} 46. Bd4 {[%clk 0:00:12]}  Kf5 {[%clk 0:00:04]} 47. f3 {[%clk 0:00:12]}  Kg5 {[%clk 0:00:04]} 48. Kf2 {[%clk 0:00:13]}  f5 {[%clk 0:00:05]} 49. Ke3 {[%clk 0:00:13]}  Kg6 {[%clk 0:00:06]} 50. f4 {[%clk 0:00:13]}  Kf7 {[%clk 0:00:07]} 51. Kf3 {[%clk 0:00:14]}  Kg6 {[%clk 0:00:08]} 52. g4 {[%clk 0:00:15]}  fxg4+ {[%clk 0:00:09]} 53. Kxg4 {[%clk 0:00:16]}  Kf7 {[%clk 0:00:09]} 54. f5 {[%clk 0:00:16]}  Ke7 {[%clk 0:00:10]} 55. Kg5 {[%clk 0:00:17]}  Kf7 {[%clk 0:00:11]} 56. f6 {[%clk 0:00:17]}  Kf8 {[%clk 0:00:11]} 57. Kg6 {[%clk 0:00:18]}  Kg8 {[%clk 0:00:12]} 58. f7+ {[%clk 0:00:18]}  Kf8 {[%clk 0:00:13]} 59. Bc5# {[%clk 0:00:18]} 1-0


[Site "https://www.chess.com"]

[Event "Titled Tuesday Blitz November 01 Late 2022"]
[White "Makarian, Rudik"]
[Black "Svane, Rasmus"]
[WhiteFideId "44105681"]
[BlackFideId "4657101"]
[WhiteElo "2405"]
[BlackElo "2674"]
[Result "1/2-1/2"]
[Round "04"]
[TimeControl "180+1"]
[Date "2022.11.01"]
[WhiteClock "0:00:09"]
[BlackClock "0:00:06"]

1. d3 {[%clk 0:03:00]}  d5 {[%clk 0:02:58]} 2. f4 {[%clk 0:03:01]}  Nf6 {[%clk 0:02:56]} 3. Nf3 {[%clk 0:03:02]}  g6 {[%clk 0:02:55]} 4. Nbd2 {[%clk 0:03:02]}  d4 {[%clk 0:02:44]} 5. g3 {[%clk 0:03:00]}  Bg7 {[%clk 0:02:44]} 6. Bg2 {[%clk 0:02:59]}  Nd5 {[%clk 0:02:42]} 7. Nc4 {[%clk 0:02:55]}  O-O {[%clk 0:02:40]} 8. O-O {[%clk 0:02:54]}  c5 {[%clk 0:02:38]} 9. e4 {[%clk 0:02:48]}  dxe3 {[%clk 0:02:38]} 10. c3 {[%clk 0:02:49]}  Nc6 {[%clk 0:02:32]} 11. Qe2 {[%clk 0:02:39]}  Bf5 {[%clk 0:02:20]} 12. Rd1 {[%clk 0:02:35]}  Qd7 {[%clk 0:02:20]} 13. Bxe3 {[%clk 0:02:30]}  b6 {[%clk 0:02:07]} 14. Bf2 {[%clk 0:02:22]}  Rad8 {[%clk 0:02:05]} 15. Nce5 {[%clk 0:02:19]}  Nxe5 {[%clk 0:02:05]} 16. Nxe5 {[%clk 0:02:20]}  Qc8 {[%clk 0:01:55]} 17. d4 {[%clk 0:02:16]}  cxd4 {[%clk 0:01:55]} 18. Bxd4 {[%clk 0:02:15]}  Rd6 {[%clk 0:01:43]} 19. Nc4 {[%clk 0:01:20]}  Re6 {[%clk 0:01:31]} 20. Qf1 {[%clk 0:01:03]}  Bxd4+ {[%clk 0:00:57]} 21. Rxd4 {[%clk 0:01:04]}  Nf6 {[%clk 0:00:57]} 22. Ne5 {[%clk 0:00:59]}  Rd8 {[%clk 0:00:51]} 23. Rad1 {[%clk 0:00:57]}  Rxd4 {[%clk 0:00:48]} 24. Rxd4 {[%clk 0:00:58]}  Qc5 {[%clk 0:00:38]} 25. Qf2 {[%clk 0:00:57]}  Rd6 {[%clk 0:00:37]} 26. Rxd6 {[%clk 0:00:48]}  Qxd6 {[%clk 0:00:38]} 27. Qd4 {[%clk 0:00:43]}  Qxd4+ {[%clk 0:00:36]} 28. cxd4 {[%clk 0:00:44]}  Kf8 {[%clk 0:00:37]} 29. Kf2 {[%clk 0:00:43]}  Be6 {[%clk 0:00:37]} 30. a3 {[%clk 0:00:42]}  Ke8 {[%clk 0:00:34]} 31. Ke3 {[%clk 0:00:38]}  Bd5 {[%clk 0:00:35]} 32. Bxd5 {[%clk 0:00:32]}  Nxd5+ {[%clk 0:00:36]} 33. Ke4 {[%clk 0:00:32]}  Nf6+ {[%clk 0:00:36]} 34. Kd3 {[%clk 0:00:33]}  Nd5 {[%clk 0:00:28]} 35. Kc4 {[%clk 0:00:31]}  Nc7 {[%clk 0:00:19]} 36. d5 {[%clk 0:00:29]}  f6 {[%clk 0:00:18]} 37. Nc6 {[%clk 0:00:27]}  a6 {[%clk 0:00:19]} 38. a4 {[%clk 0:00:14]}  Kd7 {[%clk 0:00:19]} 39. a5 {[%clk 0:00:15]}  bxa5 {[%clk 0:00:12]} 40. Nxa5 {[%clk 0:00:16]}  e6 {[%clk 0:00:08]} 41. dxe6+ {[%clk 0:00:15]}  Nxe6 {[%clk 0:00:09]} 42. Kd5 {[%clk 0:00:14]}  h5 {[%clk 0:00:08]} 43. b4 {[%clk 0:00:14]}  h4 {[%clk 0:00:06]} 44. Nb7 {[%clk 0:00:13]}  hxg3 {[%clk 0:00:05]} 45. hxg3 {[%clk 0:00:13]}  Ng7 {[%clk 0:00:05]} 46. Nc5+ {[%clk 0:00:12]}  Kc7 {[%clk 0:00:03]} 47. Nxa6+ {[%clk 0:00:13]}  Kb6 {[%clk 0:00:04]} 48. Nc5 {[%clk 0:00:12]}  Nh5 {[%clk 0:00:05]} 49. Ke6 {[%clk 0:00:09]}  Nxg3 {[%clk 0:00:04]} 50. Kxf6 {[%clk 0:00:08]}  Kb5 {[%clk 0:00:02]} 51. Kxg6 {[%clk 0:00:07]}  Kxb4 {[%clk 0:00:02]} 52. Ne6 {[%clk 0:00:07]}  Kc4 {[%clk 0:00:02]} 53. Kg5 {[%clk 0:00:06]}  Kd5 {[%clk 0:00:02]} 54. Nc7+ {[%clk 0:00:05]}  Kd6 {[%clk 0:00:03]} 55. Nb5+ {[%clk 0:00:05]}  Ke7 {[%clk 0:00:03]} 56. Nc3 {[%clk 0:00:05]}  Kf7 {[%clk 0:00:03]} 57. Kg4 {[%clk 0:00:06]}  Nf1 {[%clk 0:00:03]} 58. Kf3 {[%clk 0:00:06]}  Nd2+ {[%clk 0:00:03]} 59. Ke3 {[%clk 0:00:07]}  Nc4+ {[%clk 0:00:04]} 60. Kd4 {[%clk 0:00:07]}  Nd6 {[%clk 0:00:04]} 61. Ke5 {[%clk 0:00:08]}  Nc4+ {[%clk 0:00:04]} 62. Ke4 {[%clk 0:00:08]}  Nd6+ {[%clk 0:00:05]} 63. Kd5 {[%clk 0:00:09]}  Nf5 {[%clk 0:00:05]} 64. Ke5 {[%clk 0:00:09]}  Nh4 {[%clk 0:00:05]} 65. Ne4 {[%clk 0:00:08]}  Ng6+ {[%clk 0:00:05]} 66. Kf5 {[%clk 0:00:09]}  Nxf4 {[%clk 0:00:06]} 1/2-1/2


[Site "https://www.chess.com"]